[Event "GrandPrix_30.05"]
[Site "Chess.com"]
[Date "2020.05.30"]
[Round "2"]
[White "NikolaN98"]
[Black "yamalchess"]
[Result "0-1"]
[WhiteElo "2113"]
[BlackElo "2377"]
[TimeControl "600+2"]
[EndTime "8:54:38 PDT"]
[Termination "yamalchess won by checkmate"]

1. e4 {[%clk 0:10:00.3]} 1... e5 {[%clk 0:10:00]} 2. Nf3 {[%clk 0:10:00.3]} 2...
Nc6 {[%clk 0:10:00.7]} 3. Bc4 {[%clk 0:10:00.7]} 3... Nf6 {[%clk 0:10:00.1]} 4.
d3 {[%clk 0:10:01.1]} 4... Bc5 {[%clk 0:09:59]} 5. O-O {[%clk 0:10:02]} 5... O-O
{[%clk 0:09:58.5]} 6. a4 {[%clk 0:10:02.4]} 6... a5 {[%clk 0:09:48.5]} 7. c3
{[%clk 0:09:39.6]} 7... d5 {[%clk 0:09:42.7]} 8. exd5 {[%clk 0:09:30.9]} 8...
Nxd5 {[%clk 0:09:43.4]} 9. Re1 {[%clk 0:09:19.1]} 9... Bg4 {[%clk 0:09:39.1]}
10. Bb3 {[%clk 0:08:45.4]} 10... Re8 {[%clk 0:09:28.5]} 11. Bc2 {[%clk
0:08:35.4]} 11... Qd7 {[%clk 0:09:00.2]} 12. Nbd2 {[%clk 0:08:33.4]} 12... Rad8
{[%clk 0:08:57.4]} 13. Ne4 {[%clk 0:08:33.2]} 13... Bb6 {[%clk 0:08:57.5]} 14.
h3 {[%clk 0:07:24.6]} 14... Bh5 {[%clk 0:08:46.6]} 15. Ng3 {[%clk 0:06:50.8]}
15... Bg6 {[%clk 0:08:45.6]} 16. Nh4 {[%clk 0:06:40.6]} 16... Nf4 {[%clk
0:08:11.2]} 17. Nxg6 {[%clk 0:06:15.7]} 17... hxg6 {[%clk 0:08:08.6]} 18. Bxf4
{[%clk 0:05:57.6]} 18... exf4 {[%clk 0:08:07.3]} 19. Ne4 {[%clk 0:04:26.7]}
19... Ne5 {[%clk 0:06:56.9]} 20. d4 {[%clk 0:04:12.7]} 20... Nc4 {[%clk
0:06:56.3]} 21. Qf3 {[%clk 0:03:09.6]} 21... Qf5 {[%clk 0:05:30.1]} 22. b3
{[%clk 0:01:34.8]} 22... Nd6 {[%clk 0:05:08.2]} 23. Bd3 {[%clk 0:01:01.3]} 23...
Qe6 {[%clk 0:04:05.9]} 24. Ng5 {[%clk 0:00:38.6]} 24... Qxb3 {[%clk 0:03:53.6]}
25. Qxf4 {[%clk 0:00:16.8]} 25... Qxc3 {[%clk 0:03:36.7]} 26. Rxe8+ {[%clk
0:00:14.4]} 26... Rxe8 {[%clk 0:03:36.2]} 27. Rd1 {[%clk 0:00:14.1]} 27... Qxd4
{[%clk 0:03:19.3]} 28. Qg3 {[%clk 0:00:11.8]} 28... Qb4 {[%clk 0:03:10.4]} 29.
Kh2 {[%clk 0:00:07.8]} 29... Qb2 {[%clk 0:02:38.5]} 30. Kg1 {[%clk 0:00:04.2]}
30... Qd4 {[%clk 0:02:25.9]} 31. Bc2 {[%clk 0:00:04.3]} 31... Qb4 {[%clk
0:02:22.6]} 32. Kh2 {[%clk 0:00:04]} 32... Bd4 {[%clk 0:02:14.1]} 33. f4 {[%clk
0:00:03.4]} 33... Bf6 {[%clk 0:02:12]} 34. Rb1 {[%clk 0:00:02.5]} 34... Qd2
{[%clk 0:02:05.3]} 35. Bb3 {[%clk 0:00:03.7]} 35... Bxg5 {[%clk 0:02:05.1]} 36.
Qxg5 {[%clk 0:00:05.6]} 36... Re4 {[%clk 0:01:54.2]} 37. Rf1 {[%clk 0:00:04.9]}
37... Nf5 {[%clk 0:01:41.2]} 38. Qxg6 {[%clk 0:00:05.1]} 38... Nd6 {[%clk
0:01:03]} 39. Bxf7+ {[%clk 0:00:06.1]} 39... Kf8 {[%clk 0:01:03.4]} 40. Bb3
{[%clk 0:00:07.7]} 40... Rxf4 {[%clk 0:01:01.1]} 41. Rd1 {[%clk 0:00:07.9]}
41... Qe3 {[%clk 0:00:57.5]} 42. Rxd6 {[%clk 0:00:08]} 42... cxd6 {[%clk
0:00:57.4]} 43. Qxd6+ {[%clk 0:00:09.9]} 43... Ke8 {[%clk 0:00:58.4]} 44. Be6
{[%clk 0:00:09.2]} 44... Rd4 {[%clk 0:00:56.2]} 45. Qb8+ {[%clk 0:00:04]} 45...
Ke7 {[%clk 0:00:57.2]} 46. Qxb7+ {[%clk 0:00:02.4]} 46... Kxe6 {[%clk
0:00:57.2]} 47. Qb6+ {[%clk 0:00:03.6]} 47... Kf7 {[%clk 0:00:57.1]} 48. Qb7+
{[%clk 0:00:02.9]} 48... Qe7 {[%clk 0:00:55.1]} 49. Qb3+ {[%clk 0:00:02.7]}
49... Qe6 {[%clk 0:00:54.7]} 50. Qf3+ {[%clk 0:00:04.2]} 50... Kg8 {[%clk
0:00:52.5]} 51. Qa8+ {[%clk 0:00:05.6]} 51... Kh7 {[%clk 0:00:53.2]} 52. Qxa5
{[%clk 0:00:06.9]} 52... Qd6+ {[%clk 0:00:53.6]} 53. Kg1 {[%clk 0:00:07.6]}
53... Rd1+ {[%clk 0:00:52.9]} 54. Kf2 {[%clk 0:00:09]} 54... Qd4+ {[%clk
0:00:52.8]} 55. Ke2 {[%clk 0:00:10]} 55... Qd3+ {[%clk 0:00:53.8]} 56. Kf2
{[%clk 0:00:11.4]} 56... Rf1# {[%clk 0:00:54.9]} 0-1

[Event "GrandPrix_30.05"]
[Site "Chess.com"]
[Date "2020.05.30"]
[Round "2"]
[White "GeorgMeier"]
[Black "Lavrov_Maxim"]
[Result "1-0"]
[WhiteElo "2656"]
[BlackElo "2306"]
[TimeControl "600+2"]
[EndTime "8:54:47 PDT"]
[Termination "GeorgMeier won by resignation"]

1. Nf3 {[%clk 0:10:01.9]} 1... Nf6 {[%clk 0:09:58.6]} 2. g3 {[%clk 0:10:03.2]}
2... g6 {[%clk 0:09:59.3]} 3. Bg2 {[%clk 0:10:04.6]} 3... Bg7 {[%clk 0:10:00.2]}
4. O-O {[%clk 0:10:06.5]} 4... d6 {[%clk 0:10:00.3]} 5. d4 {[%clk 0:10:08.4]}
5... O-O {[%clk 0:10:01.2]} 6. b3 {[%clk 0:10:07.8]} 6... c6 {[%clk 0:09:42.8]}
7. Bb2 {[%clk 0:10:08.5]} 7... a5 {[%clk 0:09:39.8]} 8. a4 {[%clk 0:10:03.8]}
8... Na6 {[%clk 0:09:38.6]} 9. Nbd2 {[%clk 0:10:00.7]} 9... Bg4 {[%clk
0:09:17.3]} 10. h3 {[%clk 0:09:51.2]} 10... Bxf3 {[%clk 0:09:15]} 11. Bxf3
{[%clk 0:09:35.5]} 11... Nd7 {[%clk 0:09:08.8]} 12. e4 {[%clk 0:09:13]} 12...
Nb4 {[%clk 0:08:36]} 13. c3 {[%clk 0:09:01.8]} 13... Na6 {[%clk 0:08:25.6]} 14.
Re1 {[%clk 0:08:45.1]} 14... Qc7 {[%clk 0:08:16.9]} 15. h4 {[%clk 0:08:37.8]}
15... e5 {[%clk 0:08:06.2]} 16. Nc4 {[%clk 0:08:15.8]} 16... exd4 {[%clk
0:07:38.6]} 17. cxd4 {[%clk 0:08:16.6]} 17... Nb4 {[%clk 0:07:39.6]} 18. Rc1
{[%clk 0:07:58.4]} 18... Nb6 {[%clk 0:07:14.2]} 19. Ne3 {[%clk 0:07:47.4]} 19...
Qd8 {[%clk 0:06:59.7]} 20. Kg2 {[%clk 0:07:38.4]} 20... Nd7 {[%clk 0:06:43.9]}
21. Qd2 {[%clk 0:06:59.8]} 21... Rc8 {[%clk 0:06:26.1]} 22. Rcd1 {[%clk
0:06:36.9]} 22... Qc7 {[%clk 0:05:40.7]} 23. Bg4 {[%clk 0:05:49.9]} 23... Rce8
{[%clk 0:05:31.4]} 24. f3 {[%clk 0:03:38.2]} 24... Re7 {[%clk 0:03:55.2]} 25.
Bc3 {[%clk 0:03:00.7]} 25... Nf6 {[%clk 0:03:05.7]} 26. Bxb4 {[%clk 0:02:36.3]}
26... axb4 {[%clk 0:03:04.2]} 27. Qxb4 {[%clk 0:02:27.6]} 27... Bh6 {[%clk
0:03:04.2]} 28. Qc3 {[%clk 0:00:24.8]} 28... Bxe3 {[%clk 0:02:55.3]} 29. Qxe3
{[%clk 0:00:24.6]} 29... Nxg4 {[%clk 0:02:54.6]} 30. fxg4 {[%clk 0:00:25.6]}
30... Rfe8 {[%clk 0:02:27.3]} 31. Qf4 {[%clk 0:00:24.2]} 31... Qa5 {[%clk
0:01:03.4]} 32. Re3 {[%clk 0:00:21.7]} 32... b5 {[%clk 0:00:32.7]} 33. axb5
{[%clk 0:00:19.9]} 33... Qxb5 {[%clk 0:00:32.6]} 34. Rde1 {[%clk 0:00:21]} 34...
Qb4 {[%clk 0:00:28.8]} 35. e5 {[%clk 0:00:17.7]} 35... dxe5 {[%clk 0:00:20.3]}
36. dxe5 {[%clk 0:00:19.6]} 36... Qb7 {[%clk 0:00:14.7]} 37. Qf3 {[%clk
0:00:14.3]} 37... Qb5 {[%clk 0:00:14.3]} 38. Qf4 {[%clk 0:00:11.3]} 38... Qb7
{[%clk 0:00:14.5]} 39. h5 {[%clk 0:00:11.6]} 39... c5+ {[%clk 0:00:14.7]} 40.
Kh2 {[%clk 0:00:11.5]} 40... Qc6 {[%clk 0:00:12.7]} 41. h6 {[%clk 0:00:12.1]}
41... Qe6 {[%clk 0:00:10.8]} 42. g5 {[%clk 0:00:12.5]} 42... Rd7 {[%clk
0:00:10.7]} 43. Qf6 {[%clk 0:00:11]} 43... Rd2+ {[%clk 0:00:11.6]} 44. R1e2
{[%clk 0:00:12.4]} 44... Rxe2+ {[%clk 0:00:11.2]} 45. Rxe2 {[%clk 0:00:14.3]}
45... Qxf6 {[%clk 0:00:12.1]} 46. gxf6 {[%clk 0:00:16.2]} 46... Rb8 {[%clk
0:00:12.1]} 47. Rd2 {[%clk 0:00:14.8]} 47... Kf8 {[%clk 0:00:12.2]} 48. Rd7
{[%clk 0:00:15.9]} 48... Ke8 {[%clk 0:00:11.4]} 49. Re7+ {[%clk 0:00:17.2]}
49... Kf8 {[%clk 0:00:12.5]} 50. Rc7 {[%clk 0:00:18.8]} 1-0

[Event "GrandPrix_30.05"]
[Site "Chess.com"]
[Date "2020.05.30"]
[Round "2"]
[White "Poghosyan_Suren"]
[Black "Saxar85"]
[Result "0-1"]
[WhiteElo "2132"]
[BlackElo "2522"]
[TimeControl "600+2"]
[EndTime "8:54:50 PDT"]
[Termination "Saxar85 won by resignation"]

1. d4 {[%clk 0:10:01.9]} 1... d6 {[%clk 0:09:45.5]} 2. e4 {[%clk 0:10:00]} 2...
g6 {[%clk 0:09:42.2]} 3. Nc3 {[%clk 0:09:59.4]} 3... Bg7 {[%clk 0:09:43.1]} 4.
Nf3 {[%clk 0:10:00.1]} 4... Nf6 {[%clk 0:09:42.8]} 5. Be2 {[%clk 0:09:59.7]}
5... O-O {[%clk 0:09:43.1]} 6. O-O {[%clk 0:10:00.6]} 6... Bg4 {[%clk
0:09:43.5]} 7. Be3 {[%clk 0:09:38.2]} 7... Nc6 {[%clk 0:09:42.7]} 8. d5 {[%clk
0:09:21]} 8... Bxf3 {[%clk 0:09:26.6]} 9. Bxf3 {[%clk 0:09:22.9]} 9... Ne5
{[%clk 0:09:27.5]} 10. Be2 {[%clk 0:09:19.5]} 10... c6 {[%clk 0:09:28]} 11. a4
{[%clk 0:08:17.8]} 11... cxd5 {[%clk 0:09:01.2]} 12. exd5 {[%clk 0:08:19.7]}
12... Qa5 {[%clk 0:08:55.2]} 13. Bd4 {[%clk 0:07:43.3]} 13... a6 {[%clk
0:08:34.7]} 14. Re1 {[%clk 0:06:34.3]} 14... Rfe8 {[%clk 0:08:21.7]} 15. Ra3
{[%clk 0:06:06]} 15... Ned7 {[%clk 0:06:55.6]} 16. Bf1 {[%clk 0:04:50.3]} 16...
Nc5 {[%clk 0:06:11.6]} 17. Na2 {[%clk 0:04:13.1]} 17... Qc7 {[%clk 0:05:16.1]}
18. b4 {[%clk 0:03:49.2]} 18... Ncd7 {[%clk 0:05:14.6]} 19. c4 {[%clk
0:03:42.8]} 19... a5 {[%clk 0:05:10.6]} 20. Rae3 {[%clk 0:03:23.5]} 20... axb4
{[%clk 0:04:45]} 21. Rxe7 {[%clk 0:03:11.7]} 21... Rxe7 {[%clk 0:04:30.1]} 22.
Rxe7 {[%clk 0:03:13.6]} 22... Qd8 {[%clk 0:03:44.1]} 23. Re1 {[%clk 0:02:17.3]}
23... Qa5 {[%clk 0:03:36.3]} 24. Qb1 {[%clk 0:02:18.2]} 24... b3 {[%clk
0:02:38.5]} 25. Nc3 {[%clk 0:02:15.7]} 25... Qb4 {[%clk 0:02:36]} 26. Qb2 {[%clk
0:01:29.9]} 26... Nh5 {[%clk 0:01:55.7]} 27. Bxg7 {[%clk 0:01:03.5]} 27... Nxg7
{[%clk 0:01:55.6]} 28. Rb1 {[%clk 0:00:58]} 28... Nc5 {[%clk 0:01:53.6]} 29. g4
{[%clk 0:00:58.9]} 29... Ne8 {[%clk 0:01:24.3]} 30. Be2 {[%clk 0:00:37.2]} 30...
Nc7 {[%clk 0:01:07]} 31. g5 {[%clk 0:00:26.6]} 31... Re8 {[%clk 0:01:03.6]} 32.
Bf1 {[%clk 0:00:25.9]} 32... Re5 {[%clk 0:01:01]} 33. h4 {[%clk 0:00:26.5]}
33... Re8 {[%clk 0:00:34.4]} 34. Ra1 {[%clk 0:00:27.1]} 34... Qa5 {[%clk
0:00:19.6]} 35. Rd1 {[%clk 0:00:17.9]} 35... Qa8 {[%clk 0:00:19]} 36. h5 {[%clk
0:00:12.4]} 36... Qd8 {[%clk 0:00:19.5]} 37. f4 {[%clk 0:00:12.6]} 37... gxh5
{[%clk 0:00:18.2]} 38. Kf2 {[%clk 0:00:08.4]} 38... Qe7 {[%clk 0:00:18.6]} 39.
Qd2 {[%clk 0:00:07.5]} 39... N7a6 {[%clk 0:00:08.7]} 40. Be2 {[%clk 0:00:07.8]}
40... Ne4+ {[%clk 0:00:07.1]} 41. Nxe4 {[%clk 0:00:08.3]} 41... Qxe4 {[%clk
0:00:08.2]} 42. Bxh5 {[%clk 0:00:10.1]} 42... Nc5 {[%clk 0:00:09.2]} 43. Bf3
{[%clk 0:00:10.2]} 43... Qc2 {[%clk 0:00:08.7]} 44. a5 {[%clk 0:00:05.9]} 44...
Qxd2+ {[%clk 0:00:09]} 45. Rxd2 {[%clk 0:00:07.8]} 45... b2 {[%clk 0:00:09.9]}
46. Rd1 {[%clk 0:00:07.6]} 46... Nd3+ {[%clk 0:00:10.9]} 47. Kg3 {[%clk
0:00:07.8]} 47... Nc1 {[%clk 0:00:11.9]} 48. Be4 {[%clk 0:00:04.1]} 48... Rxe4
{[%clk 0:00:11.9]} 0-1

[Event "GrandPrix_30.05"]
[Site "Chess.com"]
[Date "2020.05.30"]
[Round "2"]
[White "Alex_Krayz"]
[Black "Anton_Demchenko"]
[Result "0-1"]
[WhiteElo "2190"]
[BlackElo "2625"]
[TimeControl "600+2"]
[EndTime "8:54:50 PDT"]
[Termination "Anton_Demchenko won by resignation"]

1. e4 {[%clk 0:10:01.9]} 1... e5 {[%clk 0:10:00.6]} 2. Nf3 {[%clk 0:10:01.8]}
2... Nc6 {[%clk 0:10:01.9]} 3. Bb5 {[%clk 0:10:02.3]} 3... a6 {[%clk 0:10:02.4]}
4. Ba4 {[%clk 0:10:02.8]} 4... Nge7 {[%clk 0:10:03.7]} 5. c3 {[%clk 0:10:00.8]}
5... d6 {[%clk 0:10:04.7]} 6. O-O {[%clk 0:10:00.5]} 6... Bd7 {[%clk 0:10:05.8]}
7. d4 {[%clk 0:09:59.3]} 7... Ng6 {[%clk 0:10:06.8]} 8. Re1 {[%clk 0:09:26.9]}
8... Be7 {[%clk 0:10:06.6]} 9. Nbd2 {[%clk 0:09:25]} 9... O-O {[%clk 0:10:06.4]}
10. Nf1 {[%clk 0:09:20.4]} 10... b5 {[%clk 0:09:57.5]} 11. Bb3 {[%clk
0:09:16.6]} 11... exd4 {[%clk 0:09:57.2]} 12. cxd4 {[%clk 0:09:13.9]} 12... Na5
{[%clk 0:09:57.2]} 13. Bc2 {[%clk 0:09:13.3]} 13... c5 {[%clk 0:09:55.4]} 14.
Ng3 {[%clk 0:09:02.7]} 14... Re8 {[%clk 0:09:47.5]} 15. h3 {[%clk 0:08:55.7]}
15... Rc8 {[%clk 0:09:19]} 16. d5 {[%clk 0:08:30.9]} 16... Nh4 {[%clk
0:08:12.9]} 17. Bf4 {[%clk 0:07:31.9]} 17... Nxf3+ {[%clk 0:07:42.6]} 18. Qxf3
{[%clk 0:07:30]} 18... Nc4 {[%clk 0:07:44.5]} 19. Nh5 {[%clk 0:05:29.7]} 19...
g6 {[%clk 0:07:26.8]} 20. Qg3 {[%clk 0:05:22]} 20... Bh4 {[%clk 0:06:56.3]} 21.
Qf3 {[%clk 0:05:03.2]} 21... gxh5 {[%clk 0:06:11.3]} 22. e5 {[%clk 0:03:30.7]}
22... Nxe5 {[%clk 0:05:51.3]} 23. Qxh5 {[%clk 0:03:27.3]} 23... Ng6 {[%clk
0:05:45.4]} 24. Rxe8+ {[%clk 0:02:38.8]} 24... Bxe8 {[%clk 0:05:41]} 25. Re1
{[%clk 0:02:21.7]} 25... Bf6 {[%clk 0:05:18.6]} 26. Bh6 {[%clk 0:01:42.3]} 26...
Bxb2 {[%clk 0:04:05.1]} 27. f4 {[%clk 0:01:33.6]} 27... Qh4 {[%clk 0:03:17.9]}
28. Qxh4 {[%clk 0:01:32.3]} 28... Nxh4 {[%clk 0:03:18.4]} 29. f5 {[%clk
0:01:33.4]} 29... Bd7 {[%clk 0:02:58.5]} 30. Rf1 {[%clk 0:01:13.3]} 30... Re8
{[%clk 0:02:24]} 31. Rf4 {[%clk 0:01:01.3]} 31... Re2 {[%clk 0:01:22.2]} 32. Be4
{[%clk 0:00:59]} 32... Bf6 {[%clk 0:00:58.8]} 33. g3 {[%clk 0:00:53.1]} 33...
Rxe4 {[%clk 0:00:46.7]} 34. Rxe4 {[%clk 0:00:51.2]} 34... Nxf5 {[%clk 0:00:48]}
35. Bf4 {[%clk 0:00:47.5]} 35... Be5 {[%clk 0:00:25.4]} 36. Bxe5 {[%clk
0:00:31.5]} 36... dxe5 {[%clk 0:00:27.3]} 37. Rxe5 {[%clk 0:00:32.4]} 37... Kf8
{[%clk 0:00:26.2]} 38. Kf2 {[%clk 0:00:32.7]} 38... c4 {[%clk 0:00:23.2]} 39. g4
{[%clk 0:00:30.8]} 39... Nd6 {[%clk 0:00:24.2]} 40. Ke3 {[%clk 0:00:28.4]} 40...
b4 {[%clk 0:00:24.3]} 41. Kd4 {[%clk 0:00:26.9]} 41... c3 {[%clk 0:00:24.8]} 42.
Re2 {[%clk 0:00:22.6]} 42... a5 {[%clk 0:00:09.6]} 43. Kc5 {[%clk 0:00:21.6]}
43... Nb5 {[%clk 0:00:10.8]} 44. d6 {[%clk 0:00:20.9]} 44... Na3 {[%clk
0:00:08]} 45. Kb6 {[%clk 0:00:19.1]} 45... a4 {[%clk 0:00:07.2]} 46. Kc7 {[%clk
0:00:19]} 46... Bb5 {[%clk 0:00:08.6]} 47. Re1 {[%clk 0:00:18.5]} 47... c2
{[%clk 0:00:06.9]} 48. d7 {[%clk 0:00:18.8]} 48... Bxd7 {[%clk 0:00:08.1]} 49.
Kxd7 {[%clk 0:00:19.1]} 49... b3 {[%clk 0:00:09.8]} 50. axb3 {[%clk 0:00:19.1]}
50... axb3 {[%clk 0:00:11.7]} 0-1

[Event "GrandPrix_30.05"]
[Site "Chess.com"]
[Date "2020.05.30"]
[Round "2"]
[White "Natalya_Buksa"]
[Black "DenisQ"]
[Result "0-1"]
[WhiteElo "2068"]
[BlackElo "2274"]
[TimeControl "600+2"]
[EndTime "8:54:57 PDT"]
[Termination "DenisQ won by resignation"]

1. e4 {[%clk 0:09:58.4]} 1... e5 {[%clk 0:09:39.9]} 2. Nf3 {[%clk 0:09:57.4]}
2... Nf6 {[%clk 0:09:40.4]} 3. Nxe5 {[%clk 0:09:51.8]} 3... d6 {[%clk
0:09:40.8]} 4. Nf3 {[%clk 0:09:51.9]} 4... Nxe4 {[%clk 0:09:41.4]} 5. d4 {[%clk
0:08:39.7]} 5... d5 {[%clk 0:09:40.1]} 6. Bd3 {[%clk 0:08:40.4]} 6... Nc6 {[%clk
0:09:12.5]} 7. O-O {[%clk 0:08:35.9]} 7... Be7 {[%clk 0:09:07]} 8. Re1 {[%clk
0:08:26.6]} 8... Bf5 {[%clk 0:08:05]} 9. c4 {[%clk 0:08:26.2]} 9... Nb4 {[%clk
0:07:49.6]} 10. Bf1 {[%clk 0:08:17.1]} 10... O-O {[%clk 0:07:01.6]} 11. Na3
{[%clk 0:08:00.8]} 11... Re8 {[%clk 0:06:42.6]} 12. Bf4 {[%clk 0:07:57.7]} 12...
dxc4 {[%clk 0:06:24.5]} 13. Bxc4 {[%clk 0:07:21.1]} 13... Nd5 {[%clk 0:06:16.1]}
14. Be5 {[%clk 0:07:12.9]} 14... c6 {[%clk 0:05:58.6]} 15. Nc2 {[%clk
0:07:07.7]} 15... Nd6 {[%clk 0:05:43.9]} 16. Bd3 {[%clk 0:06:10.3]} 16... Bxd3
{[%clk 0:05:16.5]} 17. Qxd3 {[%clk 0:06:10.7]} 17... f6 {[%clk 0:05:16.6]} 18.
Bg3 {[%clk 0:06:04.3]} 18... Bf8 {[%clk 0:05:16.1]} 19. Qb3 {[%clk 0:06:00]}
19... Qb6 {[%clk 0:05:06.1]} 20. Ne3 {[%clk 0:05:40.6]} 20... Qxb3 {[%clk
0:05:05]} 21. axb3 {[%clk 0:05:41.4]} 21... Ne4 {[%clk 0:04:46.2]} 22. Nc4
{[%clk 0:05:33.1]} 22... Bb4 {[%clk 0:04:37.2]} 23. Re2 {[%clk 0:05:24]} 23...
Nxg3 {[%clk 0:04:36.6]} 24. Rxe8+ {[%clk 0:05:24]} 24... Rxe8 {[%clk 0:04:37.9]}
25. hxg3 {[%clk 0:05:24.3]} 25... a6 {[%clk 0:03:58.9]} 26. Kf1 {[%clk
0:05:23.8]} 26... Re4 {[%clk 0:03:30.5]} 27. Na3 {[%clk 0:05:10.8]} 27... Kf7
{[%clk 0:03:17.6]} 28. Nc2 {[%clk 0:05:11.1]} 28... h5 {[%clk 0:03:06.6]} 29.
Rd1 {[%clk 0:04:55]} 29... Ke6 {[%clk 0:02:41.7]} 30. Nd2 {[%clk 0:04:55.2]}
30... Bxd2 {[%clk 0:02:39.7]} 31. Rxd2 {[%clk 0:04:57.1]} 31... Kd6 {[%clk
0:02:16.1]} 32. Re2 {[%clk 0:04:53.1]} 32... Re6 {[%clk 0:01:59.3]} 33. Rxe6+
{[%clk 0:04:36.7]} 33... Kxe6 {[%clk 0:02:01.2]} 34. Ke2 {[%clk 0:04:38.6]}
34... g5 {[%clk 0:01:53.6]} 35. Kf3 {[%clk 0:01:32.1]} 35... b5 {[%clk
0:00:53.1]} 36. Ke2 {[%clk 0:01:19.3]} 36... a5 {[%clk 0:00:50]} 37. Kf3 {[%clk
0:01:19]} 37... Kf5 {[%clk 0:00:42.3]} 38. Ne3+ {[%clk 0:00:34.8]} 38... Ke6
{[%clk 0:00:42.1]} 39. Nc2 {[%clk 0:00:35.6]} 39... f5 {[%clk 0:00:31.8]} 40.
Ke2 {[%clk 0:00:34.7]} 40... Nf6 {[%clk 0:00:21]} 41. Ne3 {[%clk 0:00:26.5]}
41... Ng4 {[%clk 0:00:19.4]} 42. Nd1 {[%clk 0:00:25.9]} 42... Kd5 {[%clk
0:00:17.6]} 43. Kd3 {[%clk 0:00:26.9]} 43... f4 {[%clk 0:00:14]} 44. f3 {[%clk
0:00:23.8]} 44... Nf6 {[%clk 0:00:12.9]} 45. Nc3+ {[%clk 0:00:21.7]} 45... Ke6
{[%clk 0:00:12.9]} 46. Ne4 {[%clk 0:00:20.5]} 46... Nxe4 {[%clk 0:00:11.9]} 47.
Kxe4 {[%clk 0:00:19.9]} 47... fxg3 {[%clk 0:00:13]} 48. f4 {[%clk 0:00:19.9]}
48... g4 {[%clk 0:00:10.4]} 49. f5+ {[%clk 0:00:19.5]} 49... Kf6 {[%clk
0:00:11.6]} 50. Kf4 {[%clk 0:00:21]} 50... b4 {[%clk 0:00:11.1]} 51. Ke4 {[%clk
0:00:21.7]} 51... h4 {[%clk 0:00:10.5]} 52. Kf4 {[%clk 0:00:22.9]} 52... h3
{[%clk 0:00:11.1]} 53. Kxg3 {[%clk 0:00:24.1]} 53... hxg2 {[%clk 0:00:12]} 54.
Kxg2 {[%clk 0:00:26]} 54... Kxf5 {[%clk 0:00:13.4]} 55. Kg3 {[%clk 0:00:27.9]}
55... Ke4 {[%clk 0:00:14.3]} 56. Kxg4 {[%clk 0:00:29.8]} 56... Kxd4 {[%clk
0:00:15.8]} 0-1